bitfinex-derivatives/quotes_SOLF0:USTF0_20250409
["timestamp","ask_amount","ask_price","bid_price","bid_amount"]
[1744210226089,6.649e-05,106.21,106.2,24.73233731]
[1744210226289,6.649e-05,106.21,106.2,23.0017]
[1744210226692,6.649e-05,106.21,106.2,13.5817]
[1744210226889,6.649e-05,106.21,106.2,12.7325]
[1744210227094,6.649e-05,106.21,106.2,9.4235]
[1744210229898,4.8397,106.29,106.2,9.42]
[1744210230092,14.2557,106.29,106.21,39.91140343]
[1744210230297,4.8397,106.29,106.25,9.4186]
[1744210230490,9.4174,106.27,106.22,4.8388]
[1744210230688,44.75110343,106.29,106.19,93.91140343]
[1744210230888,0.06298317,106.26,106.19,93.91140343]
[1744210231093,9.4179,106.27,106.23,0.0694086]
[1744210231299,0.06761031,106.24,106.23,0.0694086]
[1744210231500,0.06761031,106.24,106.23,9.4902086]
[1744210233689,4.8397,106.29,106.27,9.4166]
[1744210233889,4.8397,106.29,106.22,54.0]
[1744210234293,44.75110343,106.29,106.23,9.4204]
[1744210234489,44.75110343,106.29,106.22,54.0]
[1744210234804,4.8397,106.29,106.24,9.4193]
[1744210235102,0.06837169,106.27,106.24,0.06763769]
[1744210235496,9.4189,106.26,106.24,0.06763769]
[1744210236004,9.4191,106.25,106.24,0.06763769]
[1744210236390,39.91140343,106.26,106.2,9.4232]
[1744210236596,39.91140343,106.24,106.17,745.96]
[1744210236797,39.91140343,106.26,106.17,745.96]
[1744210237011,9.4218,106.22,106.19,9.424]
[1744210237502,9.48412919,106.22,106.19,9.48853375]
[1744210237814,0.06232919,106.22,106.19,0.06453375]
[1744210238508,0.06232919,106.22,106.21,9.4226]
[1744210240706,0.06232919,106.22,106.19,0.06453375]
[1744210240707,0.06232919,106.22,106.2,9.4233]
[1744210240907,0.06232919,106.22,106.19,0.06453375]
[1744210241299,0.06232919,106.22,106.21,9.4226]
[1744210244312,14.0214,106.27,106.25,9.4189]
[1744210244706,4.6036,106.27,106.25,9.4189]
[1744210244916,4.6036,106.27,106.21,24.52994169]
[1744210245412,4.6036,106.27,106.24,9.4196]
[1744210245607,0.07211141,106.25,106.23,0.06836112]
[1744210245815,9.4199,106.24,106.23,0.06836112]
[1744210246520,0.07211141,106.25,106.17,53.88]
[1744210246718,4.829,106.26,106.17,53.88]
[1744210247015,9.42,106.24,106.21,9.422]
[1744210247217,4.829,106.26,106.17,53.88]
[1744210247417,9.4205,106.24,106.17,53.88]
[1744210247617,0.06232024,106.23,106.21,9.4223]
[1744210248813,0.06232024,106.23,106.2,0.06999784]
[1744210249610,24.59226193,106.23,106.14,804.4311]
[1744210249815,24.52994169,106.23,106.14,804.4311]
[1744210250512,24.52994169,106.19,106.14,63.308]
[1744210250717,24.52994169,106.19,106.13,0.34155688]
[1744210250912,0.06427393,106.18,106.15,0.06060477]
[1744210251914,9.48987393,106.18,106.15,9.48810477]
[1744210252221,0.06427393,106.18,106.15,0.06060477]
[1744210254020,9.4267,106.17,106.15,0.06060477]
[1744210254621,9.427,106.16,106.15,0.06060477]
[1744210255819,4.86367393,106.18,106.15,9.48820477]
[1744210256207,4.86367393,106.18,106.15,0.06060477]
[1744210256208,14.28907393,106.18,106.15,0.06060477]
[1744210256404,4.86367393,106.18,106.15,0.06060477]
[1744210256610,0.06427393,106.18,106.15,0.06060477]
[1744210257420,0.06427393,106.18,106.17,9.4262]
[1744210257619,4.8259,106.22,106.15,78.49054646]
[1744210257814,4.8259,106.22,106.16,4.6609]
[1744210258116,4.8259,106.22,106.19,9.424]
[1744210258518,14.2484,106.22,106.19,9.424]
[1744210258718,4.8259,106.22,106.18,9.4249]
[1744210258919,9.4231,106.21,106.19,0.06992905]
[1744210259120,4.89094136,106.22,106.19,0.06992905]
[1744210259413,9.423,106.21,106.19,0.06992905]
[1744210260423,4.89094136,106.22,106.19,0.06992905]
[1744210260917,4.89094136,106.22,106.2,9.4234]
[1744210261126,4.89094136,106.22,106.19,0.06992905]
[1744210261324,9.4235,106.2,106.19,0.06992905]
[1744210261525,4.89094136,106.22,106.19,0.06992905]
[1744210261917,4.89094136,106.22,106.2,9.4231]
[1744210262121,4.89094136,106.22,106.19,0.06992905]
[1744210262325,9.4235,106.2,106.19,0.06992905]
[1744210262533,49.05988338,106.2,106.13,0.34155688]
[1744210262720,58.4191,106.19,106.13,0.34155688]
[1744210263325,9.4258,106.18,106.15,9.4279]
[1744210263527,58.4191,106.19,106.13,0.34155688]
[1744210263731,24.52994169,106.16,106.1,0.3369262]
[1744210264029,9.431,106.12,106.1,0.3369262]
[1744210264237,24.52994169,106.14,106.1,0.3369262]
[1744210264627,9.4319,106.11,106.08,9.82656669]
[1744210264826,0.06221638,106.13,106.11,0.04158996]
[1744210265023,9.4311,106.12,106.08,0.39276669]
[1744210265222,0.06418111,106.13,106.11,0.04158996]
[1744210266127,0.06418111,106.13,106.12,9.4306]
[1744210267532,8.111e-05,106.13,106.12,9.4306]
[1744210269333,8.111e-05,106.13,106.11,0.04158996]
[1744210270332,8.111e-05,106.13,106.08,0.39276669]
[1744210271240,8.111e-05,106.13,106.08,9.82646669]
[1744210271431,8.111e-05,106.13,106.09,0.05974845]
[1744210271634,24.52994169,106.12,106.05,0.42958614]
[1744210271832,9.4338,106.09,106.06,9.4358]
[1744210272433,4.8497,106.11,106.05,0.42958614]
[1744210272836,0.05921651,106.09,106.05,0.42958614]
[1744210273933,0.05921651,106.09,106.08,9.4342]
[1744210275337,9.4302,106.13,106.1,9.4321]
[1744210275542,24.52994169,106.15,106.05,6.39858614]
[1744210275736,24.52994169,106.15,106.06,24.52994169]
[1744210276039,9.4301,106.13,106.1,9.4318]
[1744210276357,9.4293,106.14,106.11,9.431]
[1744210276565,0.07024415,106.13,106.1,0.06356807]
[1744210276860,9.49994415,106.13,106.11,9.431]
[1744210277056,0.07024415,106.13,106.11,9.431]
[1744210277657,0.07024415,106.13,106.12,9.4306]
[1744210280263,0.07024415,106.13,106.1,9.49546807]
[1744210280456,0.07024415,106.13,106.1,0.06356807]
[1744210280862,9.4308,106.12,106.1,0.06356807]
[1744210281169,24.52994169,106.11,106.05,0.42958614]
[1744210281464,4.7745,106.1,106.05,0.42958614]
[1744210281663,24.52994169,106.09,106.05,0.42958614]
[1744210281857,9.4345,106.08,106.05,9.86628614]
[1744210282056,13.9523,106.08,106.05,9.86628614]
[1744210282257,24.52994169,106.07,106.03,0.43210679]
[1744210282453,78.34994169,106.07,106.03,0.43210679]
[1744210282961,24.52994169,106.05,106.03,0.43210679]
[1744210283363,9.4377,106.04,106.03,0.43210679]
[1744210283767,24.59639822,106.05,106.0,96.40674452]
[1744210283967,9.4404,106.02,106.0,96.40674452]
[1744210284267,24.52994169,106.03,106.0,96.40674452]
[1744210284268,24.52994169,106.05,106.0,96.40674452]
[1744210284461,0.0603891,106.02,105.99,9.4417]
[1744210284663,0.0603891,106.02,105.97,0.4354922]
[1744210284863,0.0603891,106.02,105.99,9.4413]
[1744210285060,0.0603891,106.02,105.97,0.4354922]
[1744210285367,1.64112238,106.13,106.01,24.52994169]
[1744210285561,62.5091,106.14,106.02,33.85854169]
[1744210285767,62.5091,106.14,106.02,107.11038814]
[1744210285968,39.96178814,106.13,106.02,67.1486]
[1744210286266,39.96178814,106.13,106.04,39.96178814]
[1744210286566,0.06502359,106.09,106.06,0.0603891]
[1744210286963,0.06502359,106.09,106.02,67.1486]
[1744210287163,0.06502359,106.09,106.06,9.4957891]
[1744210287364,39.96178814,106.12,106.06,0.0603891]
[1744210287571,0.06686578,106.09,106.06,0.0603891]
[1744210288762,0.06686578,106.09,106.08,9.4342]
[1744210289075,66.9041,106.14,106.06,99.66217724]
[1744210289266,9.0841,106.14,106.06,59.64]
[1744210289474,9.4298,106.13,106.08,9.4338]
[1744210289771,59.64,106.13,106.04,39.96178814]
[1744210289975,9.432,106.11,106.03,63.4209]
[1744210290174,0.06810853,106.1,106.07,0.06906336]
[1744210291570,0.06810853,106.1,106.09,9.4333]
[1744210292172,0.06810853,106.1,106.08,9.4338]
[1744210292575,0.06810853,106.1,106.07,0.06906336]
[1744210292887,0.06810853,106.1,106.07,9.50366336]
[1744210293582,0.06810853,106.1,106.08,9.4341]
[1744210293965,0.06810853,106.1,106.07,0.06906336]
[1744210294578,0.06810853,106.1,105.99,59.64]
[1744210294888,39.96178814,106.07,106.02,9.4388]
[1744210295082,4.8226,106.06,106.02,9.4388]
[1744210295379,54.22068814,106.06,106.03,9.4382]
[1744210295579,4.8226,106.06,105.99,59.64]
[1744210295780,4.88498719,106.06,106.03,0.05819152]
[1744210295982,4.8226,106.06,106.03,0.05819152]
[1744210296171,4.89307501,106.06,106.03,0.05819152]
[1744210296476,9.4376,106.05,106.03,0.05819152]
[1744210296777,4.89307501,106.06,106.03,0.05819152]
[1744210296977,9.437,106.05,106.03,0.05819152]
[1744210297179,4.89307501,106.06,106.03,0.05819152]
[1744210297381,4.89307501,106.06,106.04,9.4377]
[1744210297682,4.89307501,106.06,106.03,0.05819152]
[1744210297880,14.32967501,106.06,106.03,9.49679152]
[1744210298181,4.89307501,106.06,106.03,0.05819152]
[1744210298682,0.07047501,106.06,106.03,0.05819152]
[1744210299177,39.96178814,106.04,105.96,1.6407355]
[1744210299385,9.4404,106.01,105.98,9.4426]
[1744210299589,39.96178814,106.0,105.95,0.54002972]
[1744210299770,44.71978814,106.0,105.95,0.54002972]
[1744210300075,9.4431,105.98,105.95,0.54002972]
[1744210300470,39.96178814,105.98,105.92,33.42733797]
[1744210300782,4.782,105.97,105.92,23.97953797]
[1744210300975,0.07222133,105.96,105.93,9.447]
[1744210301270,0.07222133,105.96,105.92,23.97953797]
[1744210301466,9.51712133,105.96,105.92,23.97953797]
[1744210301671,0.07222133,105.96,105.93,39.96178814]
[1744210301875,0.07222133,105.96,105.93,4.409]
[1744210302074,0.07222133,105.96,105.95,9.4457]
[1744210302578,14.1999,106.0,105.97,9.4437]
[1744210303167,9.4423,105.99,105.96,9.4444]
[1744210303373,4.782,106.02,105.93,64.069]
[1744210303582,4.782,106.02,105.94,4.5431]
[1744210303785,0.06045792,105.99,105.96,0.06778436]
[1744210304384,0.06045792,105.99,105.97,9.4434]
[1744210304581,9.50265792,105.99,105.97,9.4434]
[1744210304771,0.06045792,105.99,105.97,9.4434]
[1744210305078,9.50305792,105.99,105.96,9.51228436]
[1744210305275,0.06045792,105.99,105.96,0.06778436]
[1744210306179,9.50275792,105.99,105.96,0.06778436]
[1744210306376,0.06045792,105.99,105.96,0.06778436]
[1744210306779,9.4439,105.98,105.96,0.06778436]
[1744210307189,0.06045792,105.99,105.96,0.06778436]
[1744210307483,39.96178814,105.98,105.92,0.58154029]
[1744210307678,4.5039,105.97,105.92,0.58154029]
[1744210307884,9.4472,105.94,105.92,0.58154029]
[1744210308482,9.4475,105.93,105.92,0.58154029]
[1744210308783,0.06266265,105.94,105.92,0.58154029]
[1744210308983,9.50966265,105.94,105.92,0.58154029]
[1744210309189,0.06266265,105.94,105.92,0.58154029]
[1744210309690,0.06266265,105.94,105.93,9.4475]
[1744210311888,0.06266265,105.94,105.92,0.58154029]
[1744210312389,0.06266265,105.94,105.93,9.4475]
[1744210314990,6.265e-05,105.94,105.93,9.4475]
[1744210318592,6.265e-05,105.94,105.93,11.18268423]
[1744210318792,6.265e-05,105.94,105.93,9.4475]
[1744210318991,6.265e-05,105.94,105.93,11.18272157]
[1744210320189,6.265e-05,105.94,105.93,9.4475]
[1744210323595,4.4385,106.01,105.99,9.4422]
[1744210323799,13.8789,106.01,105.96,58.48]
[1744210324099,4.6723,106.03,105.96,58.48]
[1744210324804,6.798e-05,106.01,105.98,24.71659163]
[1744210324991,9.1357,106.08,105.98,24.65088811]
[1744210325190,9.1357,106.08,106.05,9.4363]
[1744210325500,33.78658811,106.08,106.01,58.48]
[1744210325698,24.65088811,106.06,106.02,9.4394]
[1744210325904,24.72216636,106.06,106.03,0.06401221]
[1744210326297,9.4372,106.05,106.03,0.06401221]
[1744210326602,24.72216636,106.06,106.03,0.06401221]
[1744210327001,9.4376,106.05,106.03,0.06401221]
[1744210327300,24.72216636,106.06,106.03,0.06401221]
[1744210327503,9.4377,106.04,106.03,0.06401221]
[1744210328005,9.4422,105.99,105.95,67.7045]
[1744210328297,24.65088811,106.0,105.92,0.58154029]
[1744210328493,24.65088811,105.98,105.92,10.02954029]
[1744210328697,24.65088811,105.96,105.92,0.58154029]
[1744210328894,9.007,105.99,105.92,0.58154029]
[1744210329104,0.05979124,105.95,105.93,0.06916703]
[1744210329798,9.124e-05,105.95,105.94,9.4466]
[1744210330199,24.65088811,106.05,106.0,9.4409]
[1744210330400,9.2299,106.04,106.0,9.4409]
[1744210330601,18.6683,106.04,106.0,9.4409]
[1744210330802,9.2299,106.04,105.96,24.65088811]
[1744210331000,9.2299,106.04,105.95,62.248]
[1744210331200,9.2299,106.04,105.95,58.48]
[1744210331509,0.06469374,106.01,105.98,0.06482668]
[1744210331703,24.65088811,105.99,105.92,0.58154029]
[1744210331896,24.65088811,106.0,105.9,9.4498]
[1744210331897,24.65088811,105.94,105.9,9.4498]
[1744210332095,24.65088811,105.92,105.89,0.56184597]
[1744210332518,24.65088811,105.92,105.87,0.5528099]
[1744210332919,0.07121722,105.91,105.88,0.0690704]
[1744210333118,24.65088811,105.9,105.88,0.0690704]
[1744210333310,9.452,105.88,105.87,0.5528099]
[1744210333707,40.133793,105.9,105.87,0.5528099]
[1744210333922,9.4515,105.89,105.87,0.5528099]
[1744210334119,40.133793,105.92,105.87,0.5528099]
[1744210334513,9.52277685,105.89,105.87,0.5528099]
[1744210334713,0.07157685,105.89,105.87,0.5528099]
[1744210335011,0.07157685,105.89,105.88,9.452]
[1744210336911,0.07157685,105.89,105.87,10.0053099]
[1744210337221,0.07157685,105.89,105.87,0.5528099]
[1744210337422,0.07157685,105.89,105.88,9.452]
[1744210337925,0.07157685,105.89,105.87,0.5528099]
[1744210338325,0.07157685,105.89,105.87,10.0052099]
[1744210338524,0.07157685,105.89,105.87,0.5528099]
[1744210338925,9.52277685,105.89,105.87,0.5528099]
[1744210339330,0.07157685,105.89,105.87,0.5528099]
[1744210340028,0.07157685,105.89,105.87,10.0050099]
[1744210340418,0.07157685,105.89,105.87,0.5528099]
[1744210340616,9.452,105.88,105.87,0.5528099]
[1744210341325,9.452,105.88,105.84,0.68338089]
[1744210341326,9.44,105.88,105.84,0.68338089]
[1744210341523,40.133793,105.85,105.81,0.62486214]
[1744210342027,0.06801783,105.84,105.81,0.62486214]
[1744210342217,0.06801783,105.84,105.81,10.08286214]
[1744210342415,0.06801783,105.84,105.81,0.62486214]
[1744210342814,0.06801783,105.84,105.83,9.4564]
[1744210343014,98.673793,105.9,105.82,58.54]
[1744210343215,98.673793,105.9,105.82,58.60983999]
[1744210343419,49.083693,105.92,105.82,58.54]
[1744210343628,49.083693,105.92,105.83,40.133793]
[1744210343825,18.3986,105.92,105.88,9.4513]
[1744210344025,40.133793,105.96,105.87,40.133793]
[1744210344226,0.06550802,105.91,105.89,0.06532119]
[1744210344421,8.9499,105.97,105.89,0.06532119]
[1744210344422,8.9499,105.97,105.89,40.19911419]
[1744210344622,12.77089575,106.0,105.93,40.133793]
[1744210344827,12.77089575,106.0,105.95,40.133793]
[1744210345723,0.06309336,105.99,105.96,0.05950575]
[1744210346631,4.83459336,105.99,105.96,0.05950575]
[1744210347639,0.06309336,105.99,105.96,0.05950575]
[1744210348135,0.06309336,105.99,105.97,9.4433]
[1744210348334,0.06309336,105.99,105.96,0.05950575]
[1744210348726,0.06309336,105.99,105.97,9.4431]
[1744210349132,0.06309336,105.99,105.96,0.05950575]
[1744210349632,40.133793,105.98,105.9,4.6624]
[1744210349821,9.4453,105.96,105.92,9.448]
[1744210350222,44.732293,105.98,105.89,66.4002]
[1744210350727,0.06132892,105.95,105.92,0.06744435]
[1744210351029,0.06132892,105.95,105.93,9.4475]
[1744210351225,0.06132892,105.95,105.92,0.06744435]
[1744210351427,9.4472,105.94,105.92,0.06744435]
[1744210351724,0.06132892,105.95,105.92,0.06744435]
[1744210352331,40.133793,105.94,105.87,4.5796]
[1744210352523,0.06132892,105.95,105.85,9.4544]
[1744210352524,40.133793,105.92,105.85,9.4544]
[1744210352724,40.133793,105.89,105.81,5.14006214]
[1744210352925,4.5465,105.88,105.81,5.14006214]
[1744210353131,9.4533,105.87,105.83,9.4559]
[1744210353323,4.5465,105.88,105.81,0.62486214]
[1744210353645,0.06267678,105.86,105.83,9.4563]
[1744210353827,0.06267678,105.86,105.81,0.62486214]
[1744210355640,59.16267678,105.86,105.81,0.62486214]
[1744210355839,49.588593,105.85,105.81,0.62486214]
[1744210356040,54.388393,105.85,105.81,0.62486214]
[1744210357035,4.7998,105.85,105.81,0.62486214]
[1744210357234,0.06267678,105.86,105.81,0.62486214]
[1744210357943,0.06267678,105.86,105.85,9.4547]
[1744210360748,0.06267678,105.86,105.81,5.22706214]
[1744210361153,0.06267678,105.86,105.82,59.12]
[1744210361339,0.06267678,105.86,105.85,9.4547]
[1744210361956,0.06267678,105.86,105.82,59.12]
[1744210362654,0.06267678,105.86,105.85,9.4547]
[1744210362857,7.678e-05,105.86,105.85,9.4547]
[1744210363155,7.678e-05,105.86,105.85,49.588493]
[1744210363351,7.678e-05,105.86,105.85,59.028493]
[1744210363562,7.678e-05,105.86,105.85,9.4547]
[1744210364458,7.678e-05,105.86,105.85,18.8947]
[1744210365160,7.678e-05,105.86,105.85,25.21383118]
[1744210365346,59.12,105.94,105.85,14.0229]
[1744210365547,59.12,105.94,105.93,9.4475]
[1744210365849,59.12,105.94,105.86,25.1622538]
[1744210365850,59.12,105.94,105.86,23.4262]
[1744210366050,99.253793,105.94,105.92,9.4477]
[1744210366241,99.253793,105.94,105.88,4.4916]
[1744210366441,1.64286557,106.04,105.88,4.4916]
[1744210366655,3.945e-05,105.92,105.9,0.06299625]
[1744210366844,40.133793,105.97,105.88,4.4916]
[1744210367049,40.133793,105.97,105.89,1.7356825]
[1744210367249,40.133793,105.95,105.89,1.7356825]
[1744210367461,40.133793,105.93,105.88,4.4916]
[1744210367660,99.253793,105.93,105.88,4.4916]
[1744210367856,0.0595585,105.92,105.89,0.06459587]
[1744210368357,40.133793,105.91,105.89,0.06459587]
[1744210368961,40.133793,105.91,105.89,9.51529587]
[1744210369460,40.133793,105.91,105.9,9.4502]
[1744210370165,0.0595585,105.92,105.91,9.4493]
[1744210371059,59.1595585,105.92,105.89,0.06459587]
[1744210371559,59.1595585,105.92,105.9,9.4495]
[1744210371754,59.1595585,105.92,105.89,0.06459587]
[1744210371952,0.0595585,105.92,105.89,0.06459587]
[1744210372157,59.1595585,105.92,105.91,9.4493]
[1744210372358,59.1595585,105.92,105.89,0.06459587]
[1744210372558,59.1595585,105.92,105.89,9.51499587]
[1744210372757,40.133793,105.91,105.89,0.06459587]
[1744210372963,49.583693,105.91,105.89,0.06459587]
[1744210373155,40.133793,105.91,105.89,0.06459587]
[1744210373355,40.133793,105.91,105.84,4.6563]
[1744210373656,40.133793,105.88,105.84,4.6563]
[1744210373861,40.133793,105.88,105.82,9.1698]
[1744210374056,99.233793,105.88,105.82,13.7019]
[1744210374366,40.133793,105.86,105.85,9.4546]
[1744210374562,40.20265332,105.86,105.85,9.4546]
[1744210375670,40.20265332,105.86,105.84,9.51556069]
[1744210375849,40.20265332,105.86,105.84,0.06046069]
[1744210375850,59.12,105.85,105.84,0.06046069]
[1744210377361,68.5747,105.85,105.84,0.06046069]
[1744210377562,40.133793,105.84,105.81,10.08276214]
[1744210378065,40.133793,105.84,105.81,0.62486214]
[1744210378453,49.589693,105.84,105.81,10.08256214]
[1744210378657,40.19985262,105.84,105.81,0.62486214]
[1744210378967,49.65575262,105.84,105.81,0.62486214]
[1744210379366,40.19985262,105.84,105.81,0.62486214]
[1744210379767,40.133793,105.82,105.79,0.74520072]
[1744210379969,59.12,105.81,105.79,0.74520072]
[1744210380169,59.12,105.81,105.79,10.20480072]
[1744210380365,49.65748897,105.82,105.79,10.20480072]
[1744210380559,0.06599597,105.82,105.79,0.74520072]
[1744210381868,0.06599597,105.82,105.8,9.4585]
[1744210382069,0.06599597,105.82,105.79,0.74520072]
[1744210382671,40.133793,105.81,105.79,0.74520072]
[1744210382876,40.133793,105.81,105.76,0.69104003]
[1744210383073,99.253793,105.83,105.76,0.69104003]
[1744210383377,0.06970249,105.8,105.76,0.69104003]
[1744210384484,97.593793,105.87,105.77,97.593793]
[1744210384869,97.593793,105.87,105.85,9.4544]
[1744210385174,9.2476,105.89,105.81,57.48]
[1744210385475,806.14,105.9,105.88,9.4511]
[1744210385675,9.6148,105.94,105.84,0.06245811]
[1744210385886,152.59989663,105.94,105.84,1.73645951]
[1744210386076,53.13243814,105.93,105.85,57.48]
[1744210386277,12.99864514,105.93,105.85,97.613793]
[1744210386475,12.99864514,105.93,105.92,9.4484]
[1744210387070,53.13243814,105.93,105.91,9.51726589]
[1744210387270,53.13243814,105.93,105.91,0.06846589]
[1744210387471,128.72584177,105.94,105.87,97.613793]
[1744210387775,128.72584177,105.94,105.86,18.9075]
[1744210387776,36.50466718,105.94,105.93,9.4475]
[1744210388382,9.4435,105.98,105.94,9.4466]
[1744210388899,0.06436938,105.97,105.95,9.51748846]
[1744210389396,0.06436938,105.97,105.95,0.07178846]
[1744210389899,9.50876938,105.97,105.95,0.07178846]
[1744210390099,0.06436938,105.97,105.95,0.07178846]
[1744210390303,57.52436938,105.97,105.95,0.07178846]
[1744210390499,0.06436938,105.97,105.95,0.07178846]
[1744210391008,0.06436938,105.97,105.95,9.51708846]
[1744210391699,0.06436938,105.97,105.95,0.07178846]
[1744210392297,97.573793,105.96,105.86,40.133793]
[1744210392498,40.133793,105.94,105.84,201.18546243]
[1744210392800,4.4501,105.93,105.88,9.4515]
[1744210393099,4.4501,105.93,105.84,204.78206243]
[1744210393301,49.582893,105.92,105.84,164.64826943]
[1744210393503,0.06412006,105.9,105.87,0.05979685]
[1744210395904,57.44,105.89,105.82,1.64251664]
[1744210396115,0.06412006,105.9,105.84,40.133793]
[1744210396302,57.44,105.92,105.82,40.133793]
[1744210396502,66.8888,105.92,105.83,1.73664704]
[1744210396808,57.44,105.92,105.82,41.77758979]
[1744210397007,57.44,105.92,105.84,40.133793]
[1744210397209,9.112e-05,105.88,105.86,40.19603296]
[1744210397604,40.133793,105.97,105.94,9.4466]
[1744210398109,40.133793,105.97,105.95,9.4457]
[1744210398310,40.19463862,105.97,105.94,0.065306]
[1744210398505,9.0034,105.99,105.88,40.133793]
[1744210398506,9.0034,105.99,105.91,57.44]
[1744210398698,9.0034,105.99,105.97,9.4435]
[1744210399305,18.5119662,105.99,105.97,9.51054994]
[1744210399613,49.2035592,105.99,105.97,0.06704994]
[1744210399913,58.6464592,105.99,105.97,0.06704994]
[1744210400108,58.6464592,105.99,105.96,9.4448]
[1744210400613,49.2035592,105.99,105.9,40.133793]
[1744210400803,9.0034,105.99,105.88,97.553793]
[1744210401110,40.133793,105.97,105.88,57.42]
[1744210401302,0.06128401,105.95,105.92,0.0713892]
[1744210401501,0.06128401,105.95,105.93,9.4468]
[1744210401709,0.06128401,105.95,105.92,0.0713892]
[1744210402209,9.0034,105.99,105.92,0.0713892]
[1744210402511,4.5711,105.99,105.92,97.553793]
[1744210403409,4.5711,105.99,105.94,0.06731763]
[1744210403607,0.06551366,105.97,105.94,0.06731763]
[1744210403816,0.06551366,105.97,105.96,9.4448]
[1744210404004,1.366e-05,105.97,105.96,9.4448]
[1744210407608,4.7893,106.03,106.02,9.4395]
[1744210407803,4.7893,106.03,105.96,40.133793]
[1744210408016,4.7893,106.03,105.94,43.725193]
[1744210408215,14.2287,106.03,105.99,9.4414]
[1744210408518,71.6487,106.03,105.94,43.725193]
[1744210408713,71.6487,106.03,106.0,0.07003693]
[1744210408714,0.06002014,106.02,106.0,0.07003693]
[1744210408916,0.06002014,106.02,105.96,40.133793]
[1744210409115,4.7893,106.03,106.0,0.06013438]
[1744210409418,0.07203195,106.02,105.94,43.725193]
[1744210409715,62.1893,106.03,105.95,1.73466938]
[1744210409915,102.323093,106.03,105.93,57.42]
[1744210410311,62.1893,106.03,106.02,9.4395]
[1744210410519,4.7893,106.03,106.02,9.4395]
[1744210411210,4.7893,106.03,106.01,0.06295541]
[1744210411613,4.7893,106.03,106.02,9.4395]
[1744210412627,4.7893,106.03,106.01,9.50295541]
[1744210413014,57.4,106.02,105.93,40.133793]
[1744210413218,57.4,106.02,105.9,40.133793]
[1744210413219,40.133793,106.01,105.9,40.133793]
[1744210413418,40.133793,105.99,105.91,1.73542222]
[1744210413628,4.634,105.98,105.91,1.73542222]
[1744210413822,14.0775,105.98,105.9,1.73542222]
[1744210414123,0.06842504,105.95,105.94,9.4462]
[1744210419224,2.504e-05,105.95,105.94,9.4462]
[1744210428837,2.504e-05,105.95,105.88,103.61166943]
[1744210429134,4.762,105.95,105.88,103.61166943]
[1744210429334,9.4486,105.92,105.9,9.4498]
[1744210429536,56.56,105.92,105.88,89.04926943]
[1744210429732,81.20031551,105.92,105.88,67.20656943]
[1744210429937,9.4511,105.89,105.88,52.64476943]
[1744210430433,0.06950571,105.91,105.88,52.64476943]
[1744210430627,0.06950571,105.91,105.87,29.46779295]
[1744210431335,94.86592672,105.99,105.88,40.06592672]
[1744210431634,94.86592672,105.99,105.89,54.8]
[1744210432036,9.4463,105.95,105.92,9.4478]
[1744210432239,94.86592672,105.99,105.92,9.4478]
[1744210432429,0.06250488,105.95,105.92,9.51456928]
[1744210432737,0.06250488,105.95,105.92,9.4478]
[1744210433037,0.06250488,105.95,105.92,9.50952567]
[1744210433338,9.447,105.94,105.92,9.50952567]
[1744210433640,0.06250488,105.95,105.92,0.06172567]
[1744210434135,94.9484316,105.95,105.92,0.06172567]
[1744210434335,40.06592672,105.93,105.87,9.2043]
[1744210434537,40.06592672,105.93,105.87,9.4523]
[1744210434735,40.06592672,105.93,105.83,164.68320415]
[1744210434930,4.7626,105.92,105.84,54.82]
[1744210435129,9.4506,105.9,105.88,9.4516]
[1744210435540,9.52118496,105.9,105.88,9.52301889]
[1744210435742,0.07058496,105.9,105.88,9.52301889]
[1744210436135,0.07058496,105.9,105.89,9.4511]
[1744210438238,0.07058496,105.9,105.88,0.07141889]
[1744210439045,0.07058496,105.9,105.89,9.4511]
[1744210441247,54.82,105.95,105.94,9.4466]
[1744210441538,40.06592672,105.95,105.89,4.5329]
[1744210441742,40.06592672,105.95,105.9,9.4498]
[1744210441945,9.4471,105.94,105.87,4.7257]
[1744210442242,40.06592672,105.95,105.87,4.7257]
[1744210442544,0.06568045,105.92,105.89,0.06012709]
[1744210443436,0.06568045,105.92,105.9,9.4498]
[1744210443735,0.06568045,105.92,105.89,0.06012709]
[1744210443929,40.06592672,105.91,105.82,59.4442]
[1744210444136,40.06592672,105.91,105.82,64.0422]
[1744210444639,9.4506,105.9,105.87,9.4525]
[1744210445047,9.51115496,105.9,105.87,9.52473287]